fUSD/lending_fUSD_20250610
["ID","MTS","AMOUNT","RATE_DAILY","PERIOD"]
[365266683,1749570441332,-516.88,0.00017095,2]
[365266684,1749570441356,-490.0,0.00017095,2]
[365266685,1749570441379,-490.0,0.00017095,2]
[365266686,1749570441404,-151.0,0.00017095,2]
[365266687,1749570441430,-490.0,0.00017095,2]
[365266688,1749570441455,-490.0,0.00017095,2]
[365266689,1749570441480,-317.34719703,0.00017095,2]
[365266690,1749570441505,-693.4,0.00017095,2]
[365266691,1749570441532,-490.0,0.00017095,2]
[365266692,1749570441555,-490.0,0.00017095,2]
[365266693,1749570441587,-490.0,0.00017095,2]
[365266694,1749570441612,-173.24,0.00017095,2]
[365266695,1749570441642,-551.0,0.00017095,2]
[365266696,1749570441666,-490.0,0.00017095,2]
[365266697,1749570441690,-2486.33,0.00017095,2]
[365266698,1749570441713,-500.49,0.00017095,2]
[365266699,1749570441736,-490.0,0.00017095,2]
[365266700,1749570441759,-490.0,0.00017095,2]
[365266701,1749570441783,-490.0,0.00017095,2]
[365266702,1749570441810,-1703.29,0.00017095,2]
[365266703,1749570441833,-151.0,0.00017095,2]
[365266704,1749570441856,-151.0,0.00017095,2]
[365266705,1749570441880,-490.0,0.00017095,2]
[365266706,1749570441903,-490.0,0.00017095,2]
[365266707,1749570441929,-490.0,0.00017095,2]
[365266708,1749570441953,-11955.32,0.00017095,2]
[365266709,1749570441977,-490.0,0.00017095,2]
[365266710,1749570441999,-154.163304,0.00017095,2]
[365266711,1749570442024,-490.0,0.00017095,2]
[365266712,1749570442046,-490.0,0.00017095,2]
[365266713,1749570442074,-2611.14,0.00017095,2]
[365266714,1749570442097,-490.0,0.00017095,2]
[365266715,1749570442125,-490.0,0.00017095,2]
[365266716,1749570442152,-631.04,0.00017095,2]
[365266717,1749570442177,-267.86,0.00017095,2]
[365266718,1749570442200,-490.0,0.00017095,2]
[365266719,1749570442225,-673.6,0.00017095,2]
[365266720,1749570442248,-490.0,0.00017095,2]
[365266721,1749570442274,-490.0,0.00017095,2]
[365266722,1749570442298,-603.49,0.00017095,2]
[365266723,1749570442322,-551.74,0.00017095,2]
[365266724,1749570442345,-490.0,0.00017095,2]
[365266725,1749570442371,-642.66,0.00017095,2]
[365266726,1749570442402,-490.0,0.00017095,2]
[365266727,1749570442427,-151.0,0.00017095,2]
[365266728,1749570442451,-500.0,0.00017095,2]
[365266729,1749570442475,-362.19751707,0.00017096,2]
[365266730,1749570442498,-500.0,0.00017123,2]
[365266731,1749570442520,-2050.9683181,0.00017123,2]
[365266732,1749570442543,-151.0,0.00017141,2]
[365266733,1749570442567,-151.0,0.00017141,2]
[365266734,1749570442589,-151.0,0.00017141,2]
[365266735,1749570442611,-301.004698,0.00017141,2]
[365266736,1749570442634,-301.004698,0.00017141,2]
[365266737,1749570442656,-151.0,0.00017141,2]
[365266738,1749570442679,-2815.58284374,0.00017142,2]
[365266739,1749570442701,-500.0,0.0001715,2]
[365266740,1749570442724,-219.48302284,0.00017158,2]
[365266741,1749570442746,-163.91602679,0.00017158,2]
[365266742,1749570442770,-2050.9683181,0.0001716,2]
[365266743,1749570442794,-362.19751707,0.0001716,2]
[365266744,1749570442818,-31619.5266666,0.00017165,2]
[365266745,1749570442841,-17716.6698067,0.00017165,2]
[365266746,1749570442863,-500.0,0.00017178,2]
[365266747,1749570442887,-183.1260132,0.0001719,2]
[365266748,1749570442908,-2106.83212617,0.0001719,2]
[365266749,1749570442930,-212.855355,0.00017196,2]
[365266750,1749570442952,-212.855355,0.00017196,2]
[365266751,1749570442974,-151.541357,0.00017196,2]
[365266752,1749570442997,-2919.75940895,0.00017197,2]
[365266753,1749570443019,-500.0,0.00017205,2]
[365266754,1749570443044,-153.276411,0.00017215,2]
[365266755,1749570443066,-151.0,0.00017215,2]
[365266756,1749570443088,-151.0,0.00017215,2]
[365266757,1749570443110,-151.0,0.00017215,2]
[365266758,1749570443133,-151.0,0.00017215,2]
[365266759,1749570443399,-239.72,0.00017215,2]
[365266760,1749570443421,-151.0,0.00017215,2]
[365266761,1749570443442,-190.07516,0.00017215,2]
[365266762,1749570443464,-151.0,0.00017215,2]
[365266763,1749570443486,-151.0,0.00017215,2]
[365266764,1749570443508,-151.0,0.00017215,2]
[365266765,1749570443535,-151.0,0.00017215,2]
[365266766,1749570443556,-151.0,0.00017215,2]
[365266767,1749570443578,-151.0,0.00017215,2]
[365266768,1749570443600,-151.0,0.00017215,2]
[365266769,1749570443621,-151.0,0.00017215,2]
[365266770,1749570443642,-151.0,0.00017215,2]
[365266771,1749570443664,-151.0,0.00017215,2]
[365266772,1749570443686,-151.0,0.00017215,2]
[365266773,1749570443708,-151.0,0.00017215,2]
[365266774,1749570443730,-151.0,0.00017215,2]
[365266775,1749570443751,-151.0,0.00017215,2]
[365266776,1749570443773,-151.0,0.00017215,2]
[365266777,1749570443801,-151.0,0.00017215,2]
[365266778,1749570443822,-151.0,0.00017215,2]
[365266779,1749570443845,-151.0,0.00017215,2]
[365266780,1749570443868,-151.0,0.00017215,2]
[365266781,1749570443891,-151.0,0.00017215,2]
[365266782,1749570443913,-151.0,0.00017215,2]
[365266783,1749570443935,-151.0,0.00017215,2]
[365266784,1749570443956,-151.0,0.00017215,2]
[365266785,1749570443978,-151.0,0.00017232,2]
[365266786,1749570444000,-500.0,0.00017232,2]
[365266787,1749570444021,-342.10509639,0.00017246,2]
[365266788,1749570444048,-34025.0493333,0.00017247,2]
[365266789,1749570444071,-2285.29775211,0.00017247,2]
[365266790,1749570444973,-490.0,0.00016438,2]
[365266791,1749570444994,-490.0,0.00016438,2]
[365266792,1749570445017,-490.0,0.00016602,2]
[365266793,1749570445042,-211.67,0.00016767,2]
[365266794,1749570445063,-1947.84519263,0.00016899,2]
[365266795,1749570445082,-151.0,0.00017215,2]
[365266796,1749570445103,-151.0,0.00017215,2]
[365266797,1749570445123,-151.0,0.00017215,2]
[365266798,1749570445144,-151.0,0.00017215,2]
[365266799,1749570445164,-151.0,0.00017215,2]
[365266800,1749570445184,-151.0,0.00017215,2]
[365266801,1749570445204,-151.0,0.00017215,2]
[365266802,1749570445225,-151.0,0.00017215,2]
[365266803,1749570445245,-151.0,0.00017215,2]
[365266804,1749570445265,-151.0,0.00017215,2]
[365266805,1749570445287,-151.0,0.00017215,2]
[365266806,1749570445307,-151.0,0.00017215,2]
[365266807,1749570445327,-151.0,0.00017215,2]
[365266808,1749570445347,-151.0,0.00017215,2]
[365266809,1749570445367,-151.0,0.00017215,2]
[365266810,1749570445388,-151.0,0.00017215,2]
[365266811,1749570445411,-151.0,0.00017215,2]
[365266812,1749570445431,-34145.27424779,0.00017247,2]
[365266813,1749570445454,-2716.12818179,0.00017247,2]
[365266814,1749570445481,-31611.91663561,0.00017247,2]
[365266815,1749570448115,-161.655958,0.00016438,2]
[365266816,1749570448140,-400.0,0.000165,6]
[365266817,1749570448164,-800.0,0.000166,6]
[365266818,1749570448190,-1947.84519263,0.00016958,2]
[365266819,1749570448214,-1947.84519263,0.00017016,2]
[365266820,1749570448236,-843.4096823,0.00017091,2]
[365266821,1749570448260,-157.378676,0.00017095,2]
[365266822,1749570448284,-151.0,0.00017215,2]
[365266823,1749570448305,-151.0,0.00017215,2]
[365266824,1749570448327,-151.0,0.00017215,2]
[365266825,1749570448348,-151.0,0.00017215,2]
[365266826,1749570448369,-151.0,0.00017215,2]
[365266827,1749570448389,-151.0,0.00017215,2]
[365266828,1749570448413,-151.0,0.00017215,2]
[365266829,1749570448433,-151.0,0.00017215,2]
[365266830,1749570448454,-151.0,0.00017215,2]
[365266831,1749570448476,-151.0,0.00017215,2]
[365266832,1749570448496,-151.0,0.00017215,2]
[365266833,1749570448516,-151.0,0.00017215,2]
[365266834,1749570448538,-151.0,0.00017215,2]
[365266835,1749570448559,-151.0,0.00017215,2]
[365266836,1749570448580,-151.0,0.00017215,2]
[365266837,1749570448600,-151.0,0.00017215,2]
[365266838,1749570448621,-151.0,0.00017215,2]
[365266839,1749570448643,-151.0,0.00017215,2]
[365266840,1749570448665,-151.0,0.00017215,2]
[365266841,1749570448687,-4508.0498492,0.00017247,2]
[365266842,1749570448709,-13246.62192138,0.00017247,2]
[365266843,1749570449189,-1200.0,0.000167,6]
[365266844,1749570449211,-157.378676,0.00017095,2]
[365266845,1749570449234,-151.0,0.00017215,2]
[365266846,1749570449255,-151.0,0.00017215,2]
[365266847,1749570449277,-151.0,0.00017215,2]
[365266848,1749570449300,-5817.88117982,0.00017247,2]
[365266849,1749570449322,-20412.3363957,0.00017247,2]
[365266850,1749570449343,-21760.1696902,0.00017247,2]
[365266851,1749570449364,-213.47102298,0.0001725,2]
[365266852,1749570449385,-3027.79050709,0.00017252,2]
[365266853,1749570449412,-500.0,0.00017258,2]
[365266854,1749570449433,-500.0,0.00017258,2]
[365266855,1749570449455,-151.0,0.00017258,2]
[365266856,1749570449475,-151.0,0.00017258,2]
[365266857,1749570449682,-907.0,0.00017258,2]
[365266858,1749570449703,-300.0,0.00017258,2]
[365266859,1749570449725,-666.0,0.00017258,2]
[365266860,1749570449747,-300.0,0.00017259,2]
[365266861,1749570449769,-300.0,0.00017259,2]
[365266862,1749570449791,-152.623497,0.00017259,2]
[365266863,1749570449813,-532.008873,0.00017259,2]
[365266864,1749570449834,-532.008873,0.00017259,2]
[365266865,1749570449856,-151.0,0.00017259,2]
[365266866,1749570449878,-576.783353,0.00017259,2]
[365266867,1749570449898,-151.0,0.00017259,2]
[365266868,1749570449920,-472.618288,0.00017259,2]
[365266869,1749570449943,-472.618288,0.00017259,2]
[365266870,1749570449964,-151.0,0.00017259,2]
[365266871,1749570449986,-151.0,0.00017259,2]
[365266872,1749570450008,-151.0,0.00017259,2]
[365266873,1749570450032,-235.509538,0.00017259,2]
[365266874,1749570450054,-235.509538,0.00017259,2]
[365266875,1749570450077,-151.0,0.00017259,2]
[365266876,1749570450099,-227.628302,0.00017259,2]
[365266877,1749570450120,-227.628302,0.00017259,2]
[365266878,1749570450142,-151.0,0.00017259,2]
[365266879,1749570450163,-151.0,0.00017259,2]
[365266880,1749570450184,-151.0,0.00017259,2]
[365266881,1749570450205,-157.378676,0.00017259,2]
[365266882,1749570450227,-157.378676,0.00017259,2]
[365266883,1749570450248,-666.0,0.00017259,2]
[365266884,1749570450271,-500.0,0.0001726,2]
[365266885,1749570450292,-158.450287,0.0001726,2]
[365266886,1749570450312,-158.450287,0.0001726,2]
[365266887,1749570450332,-151.0,0.0001726,2]
[365266888,1749570450353,-151.0,0.0001726,2]
[365266889,1749570450374,-153.461716,0.0001726,2]
[365266890,1749570450397,-151.0,0.0001726,2]
[365266891,1749570450420,-151.0,0.0001726,2]
[365266892,1749570450441,-154.743056,0.0001726,2]
[365266893,1749570450463,-151.0,0.0001726,2]
[365266894,1749570450486,-401.88123,0.0001726,2]
[365266895,1749570450508,-401.88123,0.0001726,2]
[365266896,1749570450531,-151.0,0.0001726,2]
[365266897,1749570450551,-151.0,0.0001726,2]
[365266898,1749570450571,-151.0,0.0001726,2]
[365266899,1749570450591,-151.0,0.0001726,2]
[365266900,1749570450612,-151.0,0.0001726,2]
[365266901,1749570450632,-151.0,0.0001726,2]
[365266902,1749570450653,-151.0,0.0001726,2]
[365266903,1749570450674,-151.0,0.0001726,2]
[365266904,1749570450696,-151.0,0.0001726,2]
[365266905,1749570450717,-151.0,0.0001726,2]
[365266906,1749570450738,-151.0,0.0001726,2]
[365266907,1749570450759,-238.494276,0.0001726,2]
[365266908,1749570450783,-479.217574,0.0001726,2]
[365266909,1749570450807,-479.217574,0.0001726,2]
[365266910,1749570450828,-151.0,0.0001726,2]
[365266911,1749570450850,-151.0,0.0001726,2]
[365266912,1749570450871,-151.0,0.0001726,2]
[365266913,1749570450893,-151.0,0.0001726,2]
[365266914,1749570450915,-151.0,0.0001726,2]
[365266915,1749570450935,-151.0,0.0001726,2]
[365266916,1749570450956,-151.0,0.0001726,2]
[365266917,1749570450978,-151.0,0.0001726,2]
[365266918,1749570451000,-151.0,0.0001726,2]
[365266919,1749570451021,-172.597876,0.0001726,2]
[365266920,1749570451044,-151.0,0.0001726,2]
[365266921,1749570451065,-278.606212,0.0001726,2]
[365266922,1749570451090,-151.0,0.0001726,2]
[365266923,1749570451111,-151.0,0.0001726,2]
[365266924,1749570451135,-409.68,0.0001726,2]
[365266925,1749570451156,-409.68,0.0001726,2]
[365266926,1749570451178,-151.0,0.0001726,2]
[365266927,1749570451200,-151.0,0.0001726,2]
[365266928,1749570451222,-151.0,0.0001726,2]
[365266929,1749570451244,-151.0,0.0001726,2]
[365266930,1749570451265,-151.0,0.0001726,2]
[365266931,1749570451288,-151.0,0.0001726,2]
[365266932,1749570451310,-151.0,0.0001726,2]
[365266933,1749570451330,-151.0,0.0001726,2]
[365266934,1749570451352,-151.0,0.0001726,2]
[365266935,1749570451373,-151.0,0.0001726,2]
[365266936,1749570451397,-151.0,0.0001726,2]
[365266937,1749570451417,-151.0,0.0001726,2]
[365266938,1749570451439,-151.0,0.0001726,2]
[365266939,1749570451460,-151.0,0.0001726,2]
[365266940,1749570451484,-162.517009,0.0001726,2]
[365266941,1749570451506,-162.517009,0.0001726,2]
[365266942,1749570451526,-151.0,0.0001726,2]
[365266943,1749570451547,-170.29964,0.0001726,2]
[365266944,1749570451569,-170.29964,0.0001726,2]
[365266945,1749570451590,-151.0,0.0001726,2]
[365266946,1749570451611,-151.0,0.0001726,2]
[365266947,1749570451631,-151.0,0.0001726,2]
[365266948,1749570451652,-151.0,0.0001726,2]
[365266949,1749570451673,-151.0,0.0001726,2]
[365266950,1749570451695,-151.0,0.0001726,2]
[365266951,1749570451715,-151.0,0.0001726,2]
[365266952,1749570451736,-151.0,0.0001726,2]
[365266953,1749570451759,-151.0,0.0001726,2]
[365266954,1749570451781,-490.0,0.0001726,2]
[365266955,1749570451802,-151.0,0.0001726,2]
[365266956,1749570451824,-151.0,0.0001726,2]
[365266957,1749570451845,-151.0,0.0001726,2]
[365266958,1749570451866,-151.0,0.0001726,2]
[365266959,1749570451889,-490.0,0.0001726,2]
[365266960,1749570451910,-152.942544,0.0001726,2]
[365266961,1749570451934,-152.942544,0.0001726,2]
[365266962,1749570451956,-354.435439,0.0001726,2]
[365266963,1749570451978,-354.435439,0.0001726,2]
[365266964,1749570452001,-151.0,0.0001726,2]
[365266965,1749570452021,-151.0,0.0001726,2]
[365266966,1749570452044,-151.0,0.0001726,2]
[365266967,1749570452065,-151.0,0.0001726,2]
[365266968,1749570452087,-151.0,0.0001726,2]
[365266969,1749570452108,-151.0,0.0001726,2]
[365266970,1749570452132,-490.0,0.0001726,2]
[365266971,1749570452155,-151.0,0.0001726,2]
[365266972,1749570452177,-9047.825904,0.0001726,2]
[365266973,1749570452197,-151.0,0.0001726,2]
[365266974,1749570452222,-9047.825904,0.0001726,2]
[365266975,1749570452246,-210.111853,0.0001726,2]
[365266976,1749570452268,-490.0,0.0001726,2]
[365266977,1749570452291,-210.111853,0.0001726,2]
[365266978,1749570452312,-490.0,0.0001726,2]
[365266979,1749570452334,-301.004698,0.0001726,2]
[365266980,1749570452355,-301.004698,0.0001726,2]
[365266981,1749570452375,-151.0,0.0001726,2]
[365266982,1749570452400,-151.0,0.0001726,2]
[365266983,1749570452422,-151.0,0.0001726,2]
[365266984,1749570452444,-235.509538,0.0001726,2]
[365266985,1749570452465,-235.509538,0.0001726,2]
[365266986,1749570452486,-151.0,0.0001726,2]
[365266987,1749570452509,-1168.379888,0.0001726,2]
[365266988,1749570452531,-1168.379888,0.0001726,2]
[365266989,1749570452553,-490.0,0.0001726,2]
[365266990,1749570452575,-490.0,0.0001726,2]
[365266991,1749570452599,-650.74,0.0001726,2]
[365266992,1749570452621,-151.0,0.0001726,2]
[365266993,1749570452646,-490.0,0.0001726,2]
[365266994,1749570452669,-490.0,0.0001726,2]
[365266995,1749570452692,-490.0,0.0001726,2]
[365266996,1749570452715,-1276.0,0.0001726,2]
[365266997,1749570452738,-2475.77,0.0001726,2]
[365266998,1749570452760,-490.0,0.0001726,2]
[365266999,1749570452785,-545.33,0.0001726,2]
[365267000,1749570452807,-490.0,0.0001726,2]
[365267001,1749570452830,-1317.33,0.0001726,2]
[365267002,1749570452852,-490.0,0.0001726,2]
[365267003,1749570452874,-516.88,0.0001726,2]
[365267004,1749570452896,-490.0,0.0001726,2]
[365267005,1749570452920,-490.0,0.0001726,2]
[365267006,1749570452945,-833.29909032,0.0001726,3]
[365267007,1749570452967,-151.0,0.0001726,2]
[365267008,1749570452990,-697.225594,0.0001726,2]
[365267009,1749570453015,-490.0,0.0001726,2]
[365267010,1749570453039,-697.225594,0.0001726,2]
[365267011,1749570453062,-490.0,0.0001726,2]
[365267012,1749570453086,-693.4,0.0001726,2]
[365267013,1749570453108,-227.628302,0.0001726,2]
[365267014,1749570453133,-490.0,0.0001726,2]
[365267015,1749570453157,-183.33,0.0001726,2]
[365267016,1749570453179,-227.628302,0.0001726,2]
[365267017,1749570453201,-490.0,0.0001726,2]
[365267018,1749570453224,-551.0,0.0001726,2]
[365267019,1749570453246,-490.0,0.0001726,2]
[365267020,1749570453269,-2486.33,0.0001726,2]
[365267021,1749570453292,-500.49,0.0001726,2]
[365267022,1749570453314,-490.0,0.0001726,2]
[365267023,1749570453335,-490.0,0.0001726,2]
[365267024,1749570453357,-490.0,0.0001726,2]
[365267025,1749570453382,-1703.29,0.0001726,2]
[365267026,1749570453408,-151.0,0.0001726,2]
[365267027,1749570453430,-490.0,0.0001726,2]
[365267028,1749570453456,-490.0,0.0001726,2]
[365267029,1749570453479,-11955.32,0.0001726,2]
[365267030,1749570453502,-490.0,0.0001726,2]
[365267031,1749570453525,-490.0,0.0001726,2]
[365267032,1749570453548,-490.0,0.0001726,2]
[365267033,1749570453573,-151.0,0.0001726,2]
[365267034,1749570453593,-288.638509,0.0001726,2]
[365267035,1749570453865,-2611.14,0.0001726,2]
[365267036,1749570453890,-490.0,0.0001726,2]
[365267037,1749570453913,-490.0,0.0001726,2]
[365267038,1749570453939,-631.04,0.0001726,2]
[365267039,1749570453962,-490.0,0.0001726,2]
[365267040,1749570453987,-673.6,0.0001726,2]
[365267041,1749570454012,-490.0,0.0001726,2]
[365267042,1749570454039,-490.0,0.0001726,2]
[365267043,1749570454064,-603.49,0.0001726,2]
[365267044,1749570454086,-490.0,0.0001726,2]
[365267045,1749570454113,-642.66,0.0001726,2]
[365267046,1749570454139,-490.0,0.0001726,2]
[365267047,1749570454163,-151.0,0.0001726,2]
[365267048,1749570454185,-157.378676,0.0001726,2]
[365267049,1749570454207,-157.378676,0.0001726,2]
[365267050,1749570454229,-500.0,0.00017273,2]
[365267051,1749570454254,-500.0,0.00017273,2]
[365267052,1749570454276,-159.92072423,0.00017273,2]
[365267053,1749570454302,-500.0,0.00017273,2]
[365267054,1749570454323,-500.0,0.00017273,2]
[365267055,1749570454346,-159.92007661,0.00017273,2]
[365267056,1749570454368,-500.0,0.00017273,2]
[365267057,1749570454391,-151.0,0.00017273,2]
[365267058,1749570454419,-396.0,0.00017287,2]
[365267059,1749570454443,-500.0,0.00017289,2]
[365267060,1749570454473,-500.0,0.00017289,2]
[365267061,1749570454502,-500.0,0.00017289,2]
[365267062,1749570454528,-500.0,0.00017289,2]
[365267063,1749570454557,-500.0,0.00017289,2]
[365267064,1749570454583,-500.0,0.00017289,2]
[365267065,1749570454609,-500.0,0.00017289,2]
[365267066,1749570454635,-500.0,0.00017289,2]
[365267067,1749570454661,-500.0,0.00017289,2]
[365267068,1749570454687,-500.0,0.00017289,2]
[365267069,1749570454714,-500.0,0.00017289,2]
[365267070,1749570454741,-500.0,0.00017289,2]
[365267071,1749570454767,-500.0,0.00017289,2]
[365267072,1749570454797,-500.0,0.00017289,2]
[365267073,1749570454823,-500.0,0.00017289,2]
[365267074,1749570454849,-500.0,0.00017289,2]
[365267075,1749570454877,-500.0,0.00017289,2]
[365267076,1749570454903,-500.0,0.00017289,2]
[365267077,1749570454927,-500.0,0.00017289,2]
[365267078,1749570454952,-632.89,0.00017289,2]
[365267079,1749570454975,-500.0,0.00017289,2]
[365267080,1749570454998,-500.0,0.00017289,2]
[365267081,1749570455022,-500.0,0.00017289,2]
[365267082,1749570455045,-500.0,0.00017289,2]
[365267083,1749570455067,-500.0,0.00017289,2]
[365267084,1749570455090,-500.0,0.00017289,2]
[365267085,1749570455112,-500.0,0.00017289,2]
[365267086,1749570455135,-500.0,0.00017289,2]
[365267087,1749570455172,-500.0,0.00017289,2]
[365267088,1749570455198,-500.0,0.00017289,2]
[365267089,1749570455223,-500.0,0.00017289,2]
[365267090,1749570455247,-332.49,0.00017289,2]
[365267091,1749570455273,-227847.65599505,0.0001729,3]
[365267092,1749570455910,-983.05,0.00016438,2]
[365267093,1749570455934,-490.0,0.00016438,2]
[365267094,1749570455959,-983.05,0.00016602,2]
[365267095,1749570455985,-983.05,0.00016767,2]
[365267096,1749570456008,-1600.0,0.000168,6]
[365267097,1749570456031,-2000.0,0.000169,6]
[365267098,1749570456060,-314.93437307,0.00016931,2]
[365267099,1749570515277,799.23999489,0.00024658,120]
[365267101,1749570581116,625.8,0.00019205,30]
[365267102,1749570581568,362.0,0.00015611,2]
[365267103,1749570587746,1000.0,0.00015785,2]
[365267115,1749570632218,-500.0,0.00016164,2]
[365267116,1749570632227,-500.0,0.00016164,2]
[365267117,1749570632238,-703.13439769,0.00016437,2]
[365267118,1749570632250,-496.86560231,0.00016437,2]
[365267119,1749570632260,-300.0,0.00016438,2]
[365267120,1749570632269,-490.0,0.00016438,2]
[365267121,1749570632279,-213.13439769,0.00016438,2]
[365267122,1749570632290,-276.86560231,0.00016438,2]
[365267123,1749570632299,-809.82402049,0.00016438,2]
[365267124,1749570632311,-170.48597951,0.00016438,2]
[365267125,1749570632320,-397.01402009,0.00016438,2]
[365267126,1749570632331,-92.98597991,0.00016438,2]
[365267127,1749570632341,-232.21402009,0.00016438,2]
[365267128,1749570632353,-257.78597991,0.00016438,2]
[365267129,1749570632363,-210.87,0.00016438,2]
[365267130,1749570632373,-207.59402009,0.00016438,2]
[365267131,1749570632385,-379.5,0.00016438,2]
[365267132,1749570632396,-412.90597991,0.00016438,2]
[365267133,1749570632405,-490.0,0.00016438,2]
[365267134,1749570632415,-514.16782009,0.00016438,2]
[365267135,1749570632427,-62.22217991,0.00016438,2]
[365267136,1749570632437,-359.62452009,0.00016438,2]
[365267137,1749570632449,-130.37547991,0.00016438,2]
[365267138,1749570632459,-490.0,0.00016438,2]
[365267139,1749570632472,-490.0,0.00016438,2]
[365267140,1749570632482,-490.0,0.00016438,2]
[365267141,1749570632492,-490.0,0.00016438,2]
[365267142,1749570632501,-490.0,0.00016438,2]
[365267143,1749570632511,-490.0,0.00016438,2]
[365267144,1749570632520,-490.0,0.00016438,2]
[365267145,1749570632530,-490.0,0.00016438,2]
[365267146,1749570632539,-490.0,0.00016438,2]
[365267148,1749570632550,-150.0,0.00016438,2]
[365267150,1749570632560,-1814.06474256,0.00016438,2]
[365267154,1749570632590,-286.51525744,0.00016438,2]
[365267156,1749570632600,-460.0,0.00016438,2]
[365267157,1749570632609,-460.0,0.00016438,2]
[365267158,1749570632618,-490.0,0.00016438,2]
[365267159,1749570632628,-490.0,0.00016438,2]
[365267161,1749570632637,-490.0,0.00016438,2]
[365267163,1749570632646,-490.0,0.00016438,2]
[365267165,1749570632655,-490.0,0.00016438,2]
[365267166,1749570632665,-490.0,0.00016438,2]
[365267168,1749570632674,-490.0,0.00016438,2]
[365267170,1749570632685,-490.0,0.00016438,2]
[365267172,1749570632694,-490.0,0.00016438,2]
[365267174,1749570632703,-490.0,0.00016438,2]
[365267176,1749570632713,-627.78,0.00016438,2]
[365267178,1749570632722,-490.0,0.00016438,2]
[365267180,1749570632732,-490.0,0.00016438,2]
[365267181,1749570632742,-490.0,0.00016438,2]
[365267182,1749570632751,-490.0,0.00016438,2]
[365267183,1749570632760,-490.0,0.00016438,2]
[365267184,1749570632770,-490.0,0.00016438,2]
[365267185,1749570632779,-372.46714215,0.00016438,2]
[365267186,1749570632788,-490.0,0.00016438,2]
[365267187,1749570632797,-490.0,0.00016438,2]
[365267188,1749570632807,-490.0,0.00016438,2]
[365267189,1749570632816,-490.0,0.00016438,2]
[365267190,1749570632826,-612.37,0.00016438,2]
[365267192,1749570632836,-490.0,0.00016438,2]
[365267194,1749570632846,-490.0,0.00016438,2]
[365267196,1749570632856,-604.3,0.00016438,2]
[365267199,1749570632865,-490.0,0.00016438,2]
[365267201,1749570632875,-490.0,0.00016438,2]
[365267202,1749570632884,-490.0,0.00016438,2]
[365267203,1749570632894,-490.0,0.00016438,2]
[365267204,1749570632903,-490.0,0.00016438,2]
[365267205,1749570632912,-490.0,0.00016438,2]
[365267206,1749570632922,-520.05,0.00016438,2]
[365267208,1749570632931,-1277.47,0.00016438,2]
[365267210,1749570632940,-2101.06,0.00016438,2]
[365267211,1749570632949,-1048.02,0.00016438,2]
[365267212,1749570632959,-490.0,0.00016438,2]
[365267213,1749570632968,-472.85808979,0.00016438,2]
[365267214,1749570632977,-490.0,0.00016438,2]
[365267215,1749570632986,-639.37631432,0.00016438,2]
[365267216,1749570632995,-490.0,0.00016438,2]
[365267217,1749570633004,-490.0,0.00016438,2]
[365267218,1749570633014,-490.0,0.00016438,2]